Cogmind - Beta 13 X1 @@@ ROGUE MODE // 2023.06.26 @ 22:13:33 Player: youngster Result: Destroyed by 1C-G29(R) with Subdweller Machine Gun Performance ------------- Evolutions (0) 0 Regions Visited (2) 400 Robots Destroyed (23) 115 Value Destroyed (306) 306 Prototype IDs (0) 0 Alien Tech Used (0) 0 Bonus (0) 0 TOTAL SCORE: 821 Bonus ------- None Cogmind --------- Core Integrity 0/250 Matter 140/300 Energy 93/100 System Corruption 0% Temperature Cool (0) Movement Treading (160) Location -10/Subcaves Parts ------- > --- POWER (1) -------- (None) > --- PROPULSION (2) --- Light Treads Light Treads > --- UTILITY (2) ------ Large Storage Unit Makeshift Armor Plating > --- WEAPON (2) ------- Bore Cannon Datajack > --- INVENTORY (15) --- Light Treads Light Treads Light Treads Light Treads Compact Wheel Improved Terrain Scanner Seismic Detector Scrap Shield EM Pulse Gun EM Pulse Gun Light Assault Rifle Grenade Launcher Grenade Launcher Mining Laser Peak State ------------ > --- POWER ------------ (None) > --- PROPULSION ------- Light Treads Light Treads > --- UTILITY ---------- Large Storage Unit Makeshift Armor Plating > --- WEAPON ----------- Light Assault Rifle Bore Cannon > --- INVENTORY -------- Light Treads Light Treads Light Treads Light Treads Compact Wheel Improved Terrain Scanner Seismic Detector Scrap Shield EM Pulse Gun EM Pulse Gun Grenade Launcher Grenade Launcher Datajack Mining Laser [Rating: 14] Favorites ----------- Power Ion Engine Engine Ion Engine Propulsion Light Treads Treads Light Treads Utility Seismic Detector Device Seismic Detector Storage Large Storage Unit Processor Signal Interpreter Hackware Hacking Suite Protection Makeshift Armor Plating Weapon Light Assault Rifle Energy Gun Medium Laser Ballistic Gun Light Assault Rifle Ballistic Cannon Bore Cannon Launcher Grenade Launcher Special Weapon Mining Laser Special Melee Weapon Datajack Build | -11 -10 -10 ------- Run | Jun Mat Sub Slots Evolved . | . . . Power . | . . . Propulsion . | . . . Utility . | . . . Weapon . | . . . Parts Attached 38 | 7 24 7 Power 2 | 1 1 . Engine 2 | 1 1 . Core . | . . . Reactor . | . . . Propulsion 6 | 2 4 . Treads 6 | 2 4 . Leg . | . . . Wheel . | . . . Hover . | . . . Flight . | . . . Utility 17 | 2 12 3 Device 10 | 1 8 1 Storage 3 | 1 2 . Processor 1 | . 1 . Hackware 1 | . 1 . Protection 2 | . . 2 Artifact . | . . . Weapon 13 | 2 7 4 Energy Gun 1 | 1 . . Energy Cannon . | . . . Ballistic Gun 8 | 1 6 1 Ballistic Cannon 1 | . . 1 Launcher 1 | . 1 . Special Weapon 1 | . . 1 Impact Weapon . | . . . Slashing Weapon . | . . . Piercing Weapon . | . . . Special Melee Weapon 1 | . . 1 Unidentified Prototypes . | . . . Parts Lost 3 | . 2 1 Power 2 | . 1 1 Propulsion . | . . . Utility . | . . . Weapon 1 | . 1 . Highest Loss Streak 2 | . 2 1 To Critical Strikes . | . . . Average Slot Usage (%) 99 | . 99 98 Engine 13 | . 13 12 Treads 28 | . 28 28 Device 11 | . 12 9 Storage 14 | . 14 14 Energy Gun 8 | . 10 . Ballistic Gun 18 | . 17 22 Naked Turns . | . . . Heaviest Build 34 | 14 31 34 Greatest Support 40 | 40 40 40 Greatest Overweight (x) . | . . . Average Overweight (x) . | . . . Largest Inventory Capacity 15 | 8 15 15 Average Capacity 11 | 7 11 15 Most Carried 15 | 6 15 15 Average Carried 10 | 3 10 14 Final Capacity 15 | 8 15 15 Final Carried 15 | 6 15 15 Class Distribution -------------------- 100% | Mutant Dominant Class ---------------- Mutant | -10/Materials Mutant | -10/Subcaves Resources | -11 -10 -10 ----------- Run | Jun Mat Sub Matter Collected 496 | 275 197 24 Remotely . | . . . Salvage Created 713 | 116 597 . Parts 48 | 9 39 . Haulers Intercepted 2 | . 2 . Recyclers Shooed 2 | 1 1 . Parts Field Recycled . | . . . Retrieved Matter . | . . . Parts Self-Destructed 5 | . . 5 Prevented . | . . . Kills | -11 -10 -10 ------- Run | Jun Mat Sub Combat Hostiles Destroyed 10 | . 10 . Guns 7 | . 7 . AOE 3 | . 3 . Classes Destroyed 8 | 2 6 . Worker 3 | . 3 . Tunneler 2 | 2 . . Hauler 2 | . 2 . Recycler 3 | 1 2 . Operator 1 | . 1 . Watcher 2 | . 2 . Swarmer 6 | . 6 . Grunt 4 | . 4 . Best Kill Streak 12 | 2 12 . Combat Bots Only 6 | . 6 . Max Kills in Single Turn 4 | 1 4 . Gunslinging . | . . . Exploded 1 | . 1 . Melee . | . . . Uniques/NPCs Destroyed . | . . . Combat | -11 -10 -10 -------- Run | Jun Mat Sub Damage Taken 979 | . 408 571 Core 252 | . 98 154 Absorbed by Shields . | . . . Core Remaining (%) 100 | 100 . . Volleys Fired 54 | 5 41 8 Largest 2 | 2 2 2 Hottest 100 | 70 70 100 Shots Fired 98 | 10 79 9 Gun 87 | 10 76 1 Cannon 1 | . . 1 Launcher 3 | . 3 . Special 7 | . . 7 Kinetic 45 | 5 38 2 Thermal 50 | 5 38 7 Explosive 3 | . 3 . Electromagnetic . | . . . Robot Hit Streak 11 | 4 11 2 Robot Miss Streak 3 | 1 3 1 Penetration Max . | . . . Secondary Targets 2 | . 2 . Max Gunslinging Chain 1 | . 1 . Shots Hit Robots 54 | 6 46 2 Core Hits 35 | 4 30 1 Critical Kills . | . . . Critical Parts Destroyed . | . . . Critical Strikes 4 | . 3 1 Burn 3 | . 3 . Destroy 1 | . . 1 Melee Attacks 2 | . . 2 Impact . | . . . Slashing . | . . . Piercing . | . . . Sneak Attacks . | . . . Combat Hostiles . | . . . Follow-up Attacks . | . . . Damage Inflicted 1130 | 61 1032 37 Guns 542 | 61 472 9 Cannons 28 | . . 28 Explosions 560 | . 560 . Melee . | . . . Ramming . | . . . Kinetic 297 | 37 223 37 Thermal 273 | 24 249 . Explosive 560 | . 560 . Electromagnetic . | . . . Impact . | . . . Slashing . | . . . Piercing . | . . . Highest Corruption . | . . . Average Corruption . | . . . Corruption Purged . | . . . Corruption Blocked . | . . . Overload Shots . | . . . Overflow Damage 72 | . 72 . Projectiles . | . . . Explosions 72 | . 72 . Melee . | . . . Knockbacks . | . . . Impact . | . . . Kinetic . | . . . Secondary . | . . . Self-Inflicted Damage 123 | . 123 . Shots 4 | . 4 . Rammed . | . . . Targets Rammed . | . . . Kicked . | . . . Crushed . | . . . Highest Temperature 139 | 40 139 . Average Temperature 42 | 19 44 . Received Heat Transfer 120 | . 75 45 Siege Activations . | . . . Robots Corrupted . | . . . Combat Hostiles . | . . . Parts Fried . | . . . Impact Corruptions . | . . . Robots Melted . | . . . Combat Hostiles . | . . . Parts Melted 1 | . 1 . Heat Transferred 1036 | 74 962 . Parts Sabotaged . | . . . Parts Stolen . | . . . Parts Stripped . | . . . Power Chain Reactions . | . . . Missiles Intercepted . | . . . Alert | -11 -10 -10 ------- Run | Jun Mat Sub Peak Influence 164 | 15 164 . Initial 9 | . 9 . Average 64 | 7 73 . Maximum Alert Level . | . . . Low Security (%) 100 | 100 100 . Level 1 . | . . . Level 2 . | . . . Level 3 . | . . . Level 4 . | . . . Level 5 . | . . . High Security . | . . . Max Security . | . . . Squads Dispatched 1 | . 1 . Investigation . | . . . Extermination . | . . . Reinforcement 1 | . 1 . Assault . | . . . Garrison . | . . . Intercept . | . . . Searches Triggered . | . . . Construction Impeded . | . . . Haulers Reinforced . | . . . Active Scanning Responses . | . . . Cargo Convoy Interrupts . | . . . Stealth | -11 -10 -10 --------- Run | Jun Mat Sub Distress Signals 3 | . 3 . Communications Jammed . | . . . Distress Signals . | . . . Times Spotted 28 | . 19 9 Peak Tracking Total 9 | . 5 9 Tactical Retreats 1 | . 1 . Traps | -11 -10 -10 ------- Run | Jun Mat Sub Traps Triggered 2 | . 2 . Indirectly . | . . . Trap Hack Attempts . | . . . Triggered . | . . . Disarmed . | . . . Reprogrammed . | . . . Reused . | . . . Traps Extracted . | . . . Installed . | . . . Triggered . | . . . Machines | -11 -10 -10 ---------- Run | Jun Mat Sub Machines Disabled 1 | . 1 . Max in Single Turn 1 | . 1 . Machines Repaired . | . . . Machines Sabotaged . | . . . Overloaded Fab Kills . | . . . Hacking | -11 -10 -10 --------- Run | Jun Mat Sub Machines Accessed 6 | . 6 . Terminals 6 | . 6 . Fabricators . | . . . Repair Stations . | . . . Recycling Units . | . . . Scanalyzers . | . . . Garrison Access . | . . . Total Hacks 11 | . 11 . Successful 4 | . 4 . Failed 7 | . 7 . Catastrophic 1 | . 1 . Database Lockouts . | . . . Manual 9 | . 9 . Terminals 11 | . 11 . Fabricators . | . . . Repair Stations . | . . . Recycling Units . | . . . Scanalyzers . | . . . Garrison Access . | . . . Terminal Hacks 3 | . 3 . Robot Analysis 2 | . 2 . Branch Access Points 1 | . 1 . Fabricator Hacks . | . . . Repair Station Hacks . | . . . Recycling Unit Hacks . | . . . Scanalyzer . | . . . Garrison Access Hacks . | . . . Unauthorized Hacks 1 | . 1 . Terminals 1 | . 1 . Botnet 1 | . 1 . Fabricators . | . . . Repair Stations . | . . . Recycling Units . | . . . Scanalyzers . | . . . Garrison Access . | . . . Data Cores Recovered . | . . . Used . | . . . Hacking Detections 6 | . 6 . Full Trace Events . | . . . Feedback Events . | . . . Feedback Blocked . | . . . Robot Schematics Acquired . | . . . Robots Built . | . . . Authchips . | . . . Time . | . . . Total Robot Build Rating . | . . . Part Schematics Acquired . | . . . Parts Built . | . . . Authchips . | . . . Time . | . . . Total Part Build Rating . | . . . Parts Repaired . | . . . Time . | . . . Parts Recycled . | . . . Recycled Matter . | . . . Retrieved Matter . | . . . Retrieved Components . | . . . Parts Scanalyzed . | . . . Part Schematics Acquired . | . . . Parts Damaged . | . . . Bothacking | -11 -10 -10 ------------ Run | Jun Mat Sub Used RIF Installer . | . . . Robots Hacked 1 | . . 1 Non-combat . | . . . Combat 1 | . . 1 Robot Hacks Applied 1 | . . 1 parse_system 1 | . . 1 Relay Couplers Released . | . . . Fabnet Peak Effective % . | . . . Robots Rewired . | . . . Allies Hacked . | . . . Hacks Repelled . | . . . Allies | -11 -10 -10 -------- Run | Jun Mat Sub Total Allies . | . . . Largest Group . | . . . Highest-Rated Group . | . . . Highest-Rated Ally . | . . . Total Orders . | . . . Ally Attacks . | . . . Total Damage . | . . . Kills . | . . . Allies Corrupted . | . . . Allies Melted . | . . . Intel | -11 -10 -10 ------- Run | Jun Mat Sub Robot Analysis Total 2 | . 2 . Derelict Logs Recovered 1 | . . 1 Drone Launches . | . . . Drone Recoveries . | . . . Exploration | -11 -10 -10 ------------- Run | Jun Mat Sub Turns Passed 1492 | 173 1092 227 Spaces Moved 699 | 91 501 107 Core 4 | 4 . . Treads 695 | 87 501 107 Legs . | . . . Wheels . | . . . Hover . | . . . Flight . | . . . Fastest Speed 50 | 50 160 160 Average Speed 159 | 155 160 160 Slowest Speed 160 | 160 160 160 Overloaded Moves . | . . . Propulsion Burnouts . | . . . Robots Hopped . | . . . Cave-ins Triggered . | . . . Exploration Rate (%) 35 | 4 85 18 Regions Visited 2 Branch Regions 1 Pre-discovered Areas . | . . . Known Exits Taken 1 | . 1 . Unknown Exits Taken 1 | 1 . . Scrap Searched 1 | . . 1 Spaces Dug 6 | . 6 . Terrain Destroyed 25 | . 25 . Melee . | . . . Projectile . | . . . AOE 25 | . 25 . Terrain Rammed . | . . . Walls Destroyed . | . . . Machines Disabled . | . . . Actions | -11 -10 -10 --------- Run | Jun Mat Sub Total 968 | 111 720 137 Wait 136 | 2 127 7 Move 697 | 90 500 107 Hop . | . . . Pick Up 27 | 7 18 2 Fast Attach 13 | 6 6 1 Attach 4 | 1 3 . Detach 1 | . 1 . Swap 21 | . 15 6 Drop 13 | . 9 4 Fire 54 | 5 41 8 Melee 2 | . . 2 Ram . | . . . Kick . | . . . Crush . | . . . Escape Stasis . | . . . Rewire . | . . . Trap . | . . . Miscellaneous . | . . . Route ------- -11/Junkyard -10/Materials (discovered 4 exits: [*Mat] / *Min x2 / *Sub) -10/Subcaves (discovered 1 exit: [*Mat]) History --------- Turn | Location | Event 82 | -11/Junkyard | Discovered new exit (range 15) 174 | -11/Junkyard | Entered Materials 302 | -10/Materials | Build established: Mutant 482 | -10/Materials | Identified exit to Mines 583 | -10/Materials | Discovered new exit (range 8) 705 | -10/Materials | Identified exit to Subcaves 1169 | -10/Materials | Discovered new exit (range 3) 1266 | -10/Materials | Entered Subcaves 1390 | -10/Subcaves | Discovered new exit (range 12) 1435 | -10/Subcaves | Learned Materials terminal intel 1467 | -10/Subcaves | Ambushed by swarm of Subdwellers 1469 | -10/Subcaves | Ambushed by Subdwellers from Twisted Machinery 1469 | -10/Subcaves | Ambushed by Subdwellers from Twisted Machinery 1487 | -10/Subcaves | Core integrity fell below 50% 1491 | -10/Subcaves | Core integrity fell below 20% 1493 | -10/Subcaves | Destroyed by 1C-G29(R) with Subdweller Machine Gun Last Messages --------------- 01469_ C7-DDK(R) emerges from the Twisted Machinery. 01469_ 23-6RL(R) angrily emerges from the Twisted Machinery. 01469_ 1C-G29(R) angrily emerges from the Twisted Machinery. 01469_ BU-491(R) emerges from the Twisted Machinery. 01469_ ZL-R7N(h) destroyed. 01471_ Lgt. Ion Engine destroyed. 01472_ Dropped Lgt. Assault Rifle. 01472_ Acquired Bore Cannon. 01474_ W0-XR9(R) emerges from the Twisted Machinery. 01478_ IX-5QI(g): "Sorry we're late! Had another grouchy Sub to deal with. Who's the new fellow?" 01481_ H8-60P(R) suffers critical hit (Destroy). 01482_ BU-491(R) suffers critical hit (Burn). 01487_ JK-7LR(g) destroyed. 01488_ BU-491(R) destroyed. 01490_ Jacked 23-6RL(R)... >>parse_system Reading system data... 01492_ Hvy. Assault Rifle fries itself beyond repair. 01492_ Y1-9BG(g) destroyed. Map ----- +----------------------------------------------------+ | ## #????????????????????????????????????????? | | #????????????????????????????????????????? | | ## ##????????????????????????????????????????? | | ####?????????????????????????????????????????? | | ##???????####????????????????????????????????? | | #??##### ##???????????????????????????????? | | #?# #???????????????????????????????? | | ## ????????????????????????????????? | | ???????????????????????????????? | | ???????????????????????????????? | | ###????????? ????????????????????????? | | ##??????????? ???????????????????????? | | ####????????? ?????????????????????? | | #????????? #?????????????????????? | | #???????## #?????????????????????? | | ###??????## ##????????????????????? | | ##???????## #????????????????????? | | ## ##??????## #??###????????????????? | | ### #??????# #?? #????????????????? | | ### #####??# #??? #????????????????? | | ## ##?# #???? #????????????????? | | ### ##??? #?????# #????????? | | ## # ???? #??? ""????????? | | ## ## ##### %### ""#?????????? | | ### #### #!#= # RR #?????????? | | #?# ###??# !%g[@RR "#??????????? | | ?# #???# =%*!!%R R #??????????? | | #??# ##=## !!# R % ?????? | | #??## ############## ?????? | | ##???########??????????????##R #### #??????? | | ######?????????????????????????????###???????????? | | ?????????????????????????????????????????????????? | | ?????????????????????????????????????????????????? | | ?????????????????????????????????????????????????? | | ?????????????????????????????????????????????????? | | ?????????????????????????????????????????????????? | | ?????????????????????????????????????????????????? | | ?????????????????????????????????????????????????? | | ?????????????????????????????????????????????????? | | ?????????????????????????????????????????????????? | | ?????????????????????????????????????????????????? | | ?????????????????????????????????????????????????? | | ?????????????????????????????????????????????????? | | ?????????????????????????????????????????????????? | | ?????????????????????????????????????????????????? | | | | | | | | | | | +----------------------------------------------------+ Best States ------------- Heat Dissipation 25 Energy Generation 10 Energy Capacity 250 Matter Stores 300 Matter Capacity 300 Sight Range 16 Terrain Scan Range 16 Terrain Scan Density 10 Armor Coverage 100 Evasion (%) 40 Recoil Reduction 2 Offensive Hacking 10 Item Schematics ----------------- None Robot Schematics ------------------ None Fabricated ------------ Nothing Alien Tech Used ----------------- None Achievements -------------- None Challenges ------------ None Game ------ Seed DamperThermicGenerator Manual? 0 Play Time 00:17:45 Cumulative 412.4 hours Start 2023.06.26 @ 21:50:02 End 2023.06.26 @ 22:13:33 Sessions 3 Manual Loads 0 Difficulty Rogue Special Mode None Game No. 183 Rogue 183 Adventurer 0 Explorer 0 Win Type - Total 9 Types 6/0/1/1/0/0/0/1/0 Lore% 85 Gallery% 90 Achievement% 71 Wizard Run 0 Options --------- ASCII 0 Keyboard 1 Movement Vi Keybinds 0 Fullscreen 2 Font 18/Cog Map View 76x50 Tactical HUD 1 Map Filters NONE Filters NONE Steam 0 RUN: ecee6879-6306-4063-8cbe-c1f3299eee78